bitfinex-derivatives/quotes_BNBF0:USTF0_20250112
["timestamp","ask_amount","ask_price","bid_price","bid_amount"]
[1736671853398,0.28869193,692.78,691.65,1.29592255]
[1736671856007,0.28869193,692.78,691.66,1.29592255]
[1736671857807,0.28869193,692.78,691.66,3.11552232]
[1736671858011,0.28869193,692.78,691.7,1.29592255]
[1736671858810,0.28869193,692.78,691.71,1.29592255]
[1736671859906,0.28869193,692.78,691.73,1.29592255]
[1736671860811,0.28869193,692.78,691.72,1.29592255]
[1736671861917,0.28869193,692.78,691.71,1.29592255]
[1736671862815,0.28869193,692.78,691.72,1.29592255]
[1736671863717,0.28869193,692.78,691.77,1.29592255]
[1736671865214,0.28869193,692.78,691.71,1.82238546]
[1736671865411,0.28869193,692.78,691.7,4.82285679]
[1736671865916,0.28869193,692.78,691.71,0.88361553]
[1736671866118,0.28869193,692.78,691.7,2.70600099]
[1736671866513,0.28869193,692.78,691.69,2.70600099]
[1736671866853,0.28869193,692.78,691.69,0.88361553]
[1736671867018,0.28869193,692.78,691.68,1.29592255]
[1736671868220,0.28869193,692.78,691.66,1.29592255]
[1736671869018,0.28869193,692.78,691.66,0.88361553]
[1736671870018,0.28869193,692.78,691.66,3.88408686]
[1736671870318,0.28869193,692.78,691.67,1.82238546]
[1736671870519,0.28869193,692.78,691.67,2.70600099]
[1736671870819,0.28869193,692.78,691.67,1.82238546]
[1736671871016,0.28869193,692.78,691.66,3.00047133]
[1736671871517,0.28869193,692.78,691.65,1.29592255]
[1736671871920,0.28869193,692.78,691.55,0.2892054]
[1736671892834,0.28869193,692.78,690.94,4.30436165]
[1736671893036,0.28869193,692.78,690.96,0.28945235]
[1736671902639,0.2654944,692.77,690.96,0.28945235]
[1736671902846,0.28870027,692.76,690.96,0.28945235]
[1736671903044,0.2654944,692.75,690.96,0.28945235]
[1736671903738,0.2654944,692.75,691.19,1.29592255]
[1736671904739,1.08027967,692.73,691.23,1.29592255]
[1736671904946,0.55421134,692.72,691.23,1.29592255]
[1736671905240,0.5542155,692.71,691.23,1.29592255]
[1736671905448,0.55421967,692.7,691.23,1.29592255]
[1736671905645,0.28872944,692.69,691.23,1.29592255]
[1736671906147,0.28872944,692.69,691.18,0.88211823]
[1736671906148,0.28872944,692.69,691.26,1.29592255]
[1736671907248,0.28872944,692.69,691.19,3.89055733]
[1736671907249,1.08027967,692.67,691.32,1.29592255]
[1736671907449,0.28874195,692.66,691.32,1.29592255]
[1736671908048,0.28874195,692.66,691.24,0.88211823]
[1736671908049,1.36902162,692.66,691.3,1.29592255]
[1736671909854,1.36902162,692.66,691.28,0.88211823]
[1736671909855,0.28874195,692.66,691.35,1.29592255]
[1736671910748,0.28874195,692.66,691.29,1.29592255]
[1736671911745,0.28874195,692.66,691.3,1.29592255]
[1736671915059,0.28874195,692.66,691.29,1.29592255]
[1736671916258,0.28874195,692.66,691.33,1.29592255]
[1736671917359,0.28874195,692.66,691.34,1.29592255]
[1736671918461,1.08027967,692.6,691.25,6.12369179]
[1736671918660,1.08027967,692.6,691.26,1.81933014]
[1736671919156,0.28877113,692.59,691.26,1.81933014]
[1736671919357,0.28877113,692.59,691.26,3.11525269]
[1736671919757,0.28877113,692.59,691.26,6.12369179]
[1736671919960,0.28877113,692.59,691.27,1.81933014]
[1736671920256,1.3690508,692.59,691.27,3.11525269]
[1736671921159,1.08027967,692.58,691.28,1.29592255]
[1736671921360,1.36905497,692.58,691.28,3.11525269]
[1736671922259,1.36905497,692.58,691.29,1.29592255]
[1736671922959,1.36905497,692.58,691.29,1.81933014]
[1736671922960,1.08027967,692.56,691.29,1.81933014]
[1736671924167,1.08027967,692.56,691.29,4.82776924]
[1736671924756,1.08027967,692.56,691.39,1.29592255]
[1736671924960,0.2887753,692.58,691.39,1.29592255]
[1736671926960,0.2887753,692.58,691.41,1.29592255]
[1736671928760,0.2887753,692.58,691.44,1.29592255]
[1736671931360,0.2887753,692.58,691.37,3.0084391]
[1736671931557,0.2887753,692.58,691.15,1.29592255]
[1736671932382,1.08027967,692.52,691.04,1.82644466]
[1736671932554,1.08027967,692.52,691.04,2.71184929]
[1736671932760,1.08027967,692.52,691.03,3.0084391]
[1736671932959,0.28880449,692.51,691.03,3.0084391]
[1736671933260,0.28880449,692.51,690.98,4.83473715]
[1736671933466,0.28880449,692.51,690.99,1.82629805]
[1736671933671,0.28880449,692.51,690.99,0.28943978]
[1736671934160,0.28880449,692.51,690.99,2.11573783]
[1736671935057,0.28880449,692.51,690.99,0.28943978]
[1736671940775,0.28880449,692.51,691.0,1.29592255]
[1736671941064,0.28880449,692.51,691.0,1.58535815]
[1736671941665,0.28880449,692.51,691.17,1.29592255]
[1736671943873,0.28880449,692.51,691.15,1.29592255]
[1736671944873,0.28880449,692.51,691.16,1.29592255]
[1736671945273,0.27549169,692.51,691.16,1.29592255]
[1736671945671,0.27549169,692.51,691.18,1.29592255]
[1736671946472,0.27549169,692.51,691.22,1.29592255]
[1736671948377,0.27549169,692.51,691.16,1.82629805]
[1736671948378,0.27549169,692.51,691.33,1.29592255]
[1736671949378,0.27549169,692.51,691.25,3.0084391]
[1736671949379,0.27549169,692.51,691.26,1.82629805]
[1736671950281,0.27549169,692.51,691.26,1.29592255]
[1736671951580,0.27549169,692.51,691.23,1.29592255]
[1736671953278,0.27549169,692.51,691.2,1.29592255]
[1736671953780,0.27549169,692.51,691.2,2.18182583]
[1736671954380,0.27549169,692.51,691.2,5.19026493]
[1736671954580,0.27549169,692.51,691.21,1.82721424]
[1736671954879,0.27549169,692.51,691.21,2.71307171]
[1736671955281,1.08027967,692.46,691.21,2.71307171]
[1736671955581,0.28882951,692.45,691.21,2.71307171]
[1736671956180,0.28882951,692.45,691.14,2.71307171]
[1736671956382,1.36910918,692.45,691.14,2.71307171]
[1736671957187,1.08027967,692.44,691.14,4.00899426]
[1736671957381,0.28883786,692.43,691.15,3.89429657]
[1736671957584,0.28883786,692.43,691.16,2.71307171]
[1736671958981,0.28883786,692.43,691.15,2.71307171]
[1736671960176,0.28883786,692.43,691.14,3.0084391]
[1736671960478,0.28883786,692.43,691.14,1.29592255]
[1736671961082,0.28883786,692.43,691.0,0.2894356]
[1736671977098,0.28883786,692.43,691.18,1.29592255]
[1736671977491,0.28883786,692.43,691.18,1.2820973]
[1736671979195,0.28883786,692.43,691.12,0.88587292]
[1736671979395,0.28883786,692.43,691.11,2.71299424]
[1736671980291,0.28883786,692.43,691.11,5.72502998]
[1736671980502,0.28883786,692.43,691.12,2.71299424]
[1736671981708,0.28883786,692.43,691.12,5.72502998]
[1736671982002,0.28883786,692.43,691.13,2.71299424]
[1736671983195,0.28883786,692.43,691.12,2.71299424]
[1736671983795,0.28883786,692.43,691.12,4.91786246]
[1736671983999,0.28883786,692.43,691.13,2.71299424]
[1736671984400,0.28883786,692.43,691.13,5.72502998]
[1736671984707,0.28883786,692.43,691.25,2.20486822]
[1736671987201,0.28883786,692.43,691.25,4.91846277]
[1736671987502,0.28883786,692.43,691.32,2.20486822]
[1736671988396,0.28883786,692.43,691.33,2.20486822]
[1736671990497,0.28883786,692.43,691.29,1.82712132]
[1736671990498,0.28883786,692.43,691.34,2.20486822]
[1736671992105,0.28883786,692.43,691.31,1.82712132]
[1736671992106,0.28883786,692.43,691.33,2.20486822]
[1736671992302,0.28883786,692.43,691.33,4.03198954]
[1736671993003,1.08027967,692.38,691.33,1.82712132]
[1736671993803,1.08027967,692.39,691.33,1.82712132]
[1736671994202,1.08027967,692.39,691.17,2.71413852]
[1736672000110,0.28883786,692.43,691.29,2.20486822]
[1736672001410,0.28883786,692.43,691.28,2.20486822]
[1736672002011,0.28883786,692.43,691.29,2.20486822]
[1736672002714,0.28883786,692.43,691.29,4.91900674]
[1736672003011,0.28883786,692.43,691.3,2.71413852]
[1736672004211,0.28883786,692.43,691.3,5.72617426]
[1736672004414,0.28883786,692.43,691.31,2.71413852]
[1736672005707,0.28883786,692.43,691.3,2.71413852]
[1736672006911,0.28883786,692.43,691.3,5.72617426]
[1736672007110,0.28883786,692.43,691.31,1.82712132]
[1736672007312,1.08027967,692.38,691.31,2.71413852]
[1736672007711,1.08027967,692.38,691.31,1.82712132]
[1736672008716,1.08027967,692.38,691.26,2.71438747]
[1736672009016,1.08027967,692.39,691.26,2.71438747]
[1736672009721,1.08027967,692.38,691.26,2.71438747]
[1736672011417,1.08027967,692.38,691.26,1.82712132]
[1736672011620,1.08027967,692.38,691.25,2.71440339]
[1736672012919,1.08027967,692.38,691.25,1.82712132]
[1736672014121,1.08027967,692.38,691.25,4.83915706]
[1736672014315,1.08027967,692.38,691.26,1.82712132]
[1736672015724,0.28883786,692.43,691.36,1.3000632]
[1736672016629,0.28883786,692.43,691.35,1.3000632]
[1736672017527,0.28883786,692.43,691.28,3.89928009]
[1736672017528,0.28883786,692.43,691.36,1.3000632]
[1736672018228,0.28883786,692.43,691.38,1.3000632]
[1736672019437,0.28883786,692.43,691.39,1.3000632]
[1736672021529,0.28883786,692.43,691.38,1.3000632]
[1736672024139,0.28883786,692.43,691.29,3.01661956]
[1736672024827,1.36911753,692.43,691.29,3.01661956]
[1736672025031,1.36911753,692.43,691.17,1.3000632]
[1736672026234,0.28883786,692.43,691.16,1.3000632]
[1736672027351,0.28883786,692.43,691.11,3.12964189]
[1736672028232,0.28883786,692.43,691.12,1.3000632]
[1736672028430,0.28883786,692.43,691.12,4.31668276]
[1736672028628,0.28883786,692.43,691.13,1.82957869]
[1736672029428,0.28883786,692.43,691.13,4.84619825]
[1736672029735,0.28883786,692.43,691.14,1.82957869]
[1736672030130,0.28883786,692.43,691.14,2.71661845]
[1736672030530,0.28883786,692.43,691.14,4.01668165]
[1736672030737,0.28883786,692.43,691.15,0.88703976]
[1736672030937,0.28883786,692.43,691.15,3.90365932]
[1736672031134,0.28883786,692.43,691.16,2.71661845]
[1736672032638,0.28883786,692.43,691.14,2.71661845]
[1736672033239,0.28883786,692.43,691.17,1.3000632]
[1736672034238,0.28883786,692.43,691.16,4.01668165]
[1736672034444,0.28883786,692.43,691.17,0.88703976]
[1736672035441,0.28883786,692.43,691.17,3.90365932]
[1736672035667,0.28883786,692.43,691.18,2.71661845]
[1736672037041,1.08027967,692.41,691.24,1.3000632]
[1736672038039,1.08027967,692.4,691.23,1.3000632]
[1736672039142,0.28883786,692.43,691.23,1.3000632]
[1736672040144,0.28883786,692.43,691.25,1.3000632]
[1736672041045,0.28883786,692.43,691.26,1.3000632]
[1736672041946,0.28883786,692.43,691.27,1.3000632]
[1736672044248,0.28883786,692.43,691.2,1.3000632]
[1736672045246,0.28883786,692.43,691.1,3.01661956]
[1736672045443,0.28883786,692.43,691.11,2.71577966]
[1736672047350,0.28883786,692.43,691.06,2.71577966]
[1736672048748,0.28883786,692.43,691.13,1.3000632]
[1736672049761,0.28883786,692.43,691.12,1.3000632]
[1736672051850,0.28883786,692.43,691.12,4.01584286]
[1736672052056,0.28883786,692.43,691.13,2.18591726]
[1736672052960,0.28883786,692.43,691.14,1.3000632]
[1736672053257,0.28883786,692.43,691.14,4.01584286]
[1736672053561,0.28883786,692.43,691.15,0.88585406]
[1736672054260,1.08027967,692.42,691.21,1.3000632]
[1736672054552,0.2888462,692.41,691.21,1.3000632]
[1736672055360,0.2888462,692.41,691.17,3.90247362]
[1736672055559,0.2888462,692.41,691.18,2.71577966]
[1736672056458,0.2888462,692.41,691.17,3.01661956]
[1736672057157,0.2888462,692.41,691.15,1.3000632]
[1736672057661,0.2888462,692.41,691.07,1.82950776]
[1736672058867,0.2888462,692.41,691.04,1.82950776]
[1736672059863,0.2888462,692.41,691.1,1.3000632]
[1736672060658,0.2888462,692.41,691.11,1.3000632]
[1736672062358,0.2888462,692.41,691.12,1.3000632]
[1736672064163,0.2888462,692.41,691.05,4.31668276]
[1736672064558,0.2888462,692.41,691.06,1.82881564]
[1736672065360,0.2888462,692.41,691.06,4.8454352]
[1736672065564,0.2888462,692.41,691.06,3.01661956]
[1736672066058,0.2888462,692.41,691.15,1.3000632]
[1736672066858,0.2888462,692.41,691.05,4.31668276]
[1736672067665,0.2888462,692.41,691.05,1.3000632]
[1736672068062,0.2888462,692.41,691.0,0.2894356]
[1736672068063,0.2888462,692.41,691.0,1.5894988]
[1736672068971,1.36912587,692.41,691.0,0.2894356]
[1736672069977,1.08027967,692.39,691.0,0.2894356]
[1736672070570,1.08027967,692.39,691.0,1.5894988]
[1736672070766,0.2888462,692.41,691.0,1.5894988]
[1736672070767,1.08027967,692.36,691.0,1.5894988]
[1736672070967,1.08027967,692.36,691.0,2.47461623]
[1736672071571,1.08027967,692.34,691.04,1.3000632]
[1736672071870,0.28887958,692.33,691.04,1.3000632]
[1736672072369,0.28887958,692.33,691.0,1.17455303]
[1736672072370,0.28887958,692.33,691.0,4.19117259]
[1736672072575,0.28887958,692.33,691.01,1.82853868]
[1736672073872,0.28887958,692.33,691.0,3.30605516]
[1736672074073,0.28887958,692.33,691.0,0.2894356]
[1736672091092,0.28887958,692.33,691.02,1.3000632]
[1736672092491,0.28887958,692.33,691.03,1.3000632]
[1736672093394,0.28887958,692.33,691.09,1.3000632]
[1736672094296,0.28887958,692.33,691.01,3.89691812]
[1736672094297,0.28887958,692.33,691.1,1.3000632]
[1736672095297,0.28887958,692.33,691.14,1.3000632]
[1736672097192,0.28887958,692.33,691.15,1.3000632]
[1736672098197,0.28887958,692.33,691.09,0.88415483]
[1736672098198,0.28887958,692.33,691.16,1.3000632]
[1736672099498,1.08027967,692.28,691.1,1.82645001]
[1736672099697,0.28890461,692.27,691.1,1.82645001]
[1736672099905,0.28890461,692.27,691.07,1.82645001]
[1736672100697,1.36918428,692.27,691.07,3.12651321]
[1736672100898,1.36918428,692.27,691.08,3.01276329]
[1736672101100,1.36918428,692.27,691.09,1.82645001]
[1736672101660,1.08027967,692.24,691.09,3.12651321]
[1736672102300,1.3691968,692.24,691.1,3.01276329]
[1736672102499,1.3691968,692.24,691.11,1.82645001]
[1736672103398,1.08027967,692.23,691.11,1.82645001]
[1736672103701,1.08027967,692.23,691.1,3.01276329]
[1736672103999,0.28891713,692.24,691.1,3.01276329]
[1736672105306,0.28891713,692.24,691.1,1.3000632]
[1736672106796,0.28891713,692.24,691.12,1.3000632]
[1736672107804,0.28891713,692.24,691.11,1.3000632]
[1736672109703,0.28891713,692.24,691.12,1.3000632]
[1736672110904,0.28891713,692.24,691.03,3.01276329]
[1736672112301,0.28891713,692.24,690.96,1.3000632]
[1736672113004,0.28891713,692.24,690.9,1.3000632]
[1736672115299,0.28891713,692.24,690.91,1.3000632]
[1736672116215,0.28891713,692.24,690.9,1.3000632]
[1736672116706,0.28891713,692.24,690.9,4.31282649]
[1736672116906,0.28891713,692.24,690.91,1.82790625]
[1736672117213,0.28891713,692.24,690.91,3.12796945]
[1736672118207,0.28891713,692.24,690.92,3.01276329]
[1736672118410,0.28891713,692.24,690.93,1.82790625]
[1736672119408,0.28891713,692.24,690.93,2.71330295]
[1736672119807,0.28891713,692.24,690.94,3.01276329]
[1736672120006,1.08027967,692.23,691.11,1.3000632]
[1736672120909,0.28891713,692.24,691.14,1.3000632]
[1736672125412,0.28891713,692.24,691.14,4.01336615]
[1736672125712,0.28891713,692.24,691.15,0.8853967]
[1736672126712,0.28891713,692.24,691.15,3.89815999]
[1736672126917,0.28891713,692.24,691.16,2.71330295]
[1736672127611,0.28891713,692.24,691.18,1.3000632]
[1736672129814,0.28891713,692.24,691.18,3.12796945]
[1736672130613,0.28891713,692.24,691.19,3.01276329]
[1736672130814,0.28891713,692.24,691.2,1.82790625]
[1736672133715,0.28891713,692.24,691.19,1.82790625]
[1736672134813,0.28891713,692.24,691.19,4.84066954]
[1736672135009,1.08027967,692.22,691.2,1.82790625]
[1736672135515,1.36920515,692.22,691.2,1.82790625]
[1736672135914,1.36920515,692.22,691.2,2.71438411]
[1736672136317,1.36920515,692.22,691.12,2.71438411]
[1736672139220,0.28892548,692.22,691.12,2.71438411]
[1736672142221,0.28892548,692.22,691.12,5.7271474]
[1736672142415,0.28892548,692.22,691.13,2.71438411]
[1736672143029,0.28892548,692.22,691.13,1.82790625]
[1736672145322,0.28892548,692.22,691.12,1.82790625]
[1736672146218,0.28892548,692.22,691.11,3.01276329]
[1736672147523,0.28892548,692.22,691.0,0.2894356]
[1736672185067,0.28892548,692.22,691.1,1.3000632]
[1736672185269,0.28890461,692.27,691.1,1.3000632]
[1736672186068,0.28890461,692.27,691.12,1.3000632]
[1736672186069,1.08027967,692.25,691.12,1.3000632]
[1736672186269,0.28891713,692.24,691.12,1.3000632]
[1736672186780,0.28891713,692.24,691.07,1.3000632]
[1736672187772,0.28891713,692.24,691.0,0.2894356]
[1736672217787,0.28891713,692.24,691.0,1.5894988]
[1736672220487,0.28891713,692.24,691.01,1.3000632]
[1736672221487,0.28891713,692.24,691.0,0.2894356]
[1736672222401,0.28891713,692.24,691.03,1.3000632]
[1736672223495,0.28891713,692.24,691.0,0.2894356]
[1736672228792,0.28891713,692.24,691.01,1.3000632]
[1736672229599,0.28891713,692.24,691.02,1.3000632]
[1736672230799,0.28891713,692.24,691.0,0.2894356]
[1736672241605,0.28891713,692.24,691.17,1.3000632]
[1736672242702,0.28891713,692.24,691.16,1.3000632]
[1736672243707,0.28891713,692.24,691.1,1.3000632]
[1736672243902,0.28891713,692.24,691.1,4.60422698]
[1736672244109,0.28891713,692.24,691.11,2.11603701]
[1736672245306,0.28891713,692.24,691.11,0.28938953]
[1736672245709,0.28891713,692.24,691.12,1.3000632]
[1736672246510,0.28891713,692.24,691.11,0.28938953]
[1736672255117,0.28891713,692.24,691.14,1.3000632]
[1736672256122,0.28891713,692.24,691.15,1.3000632]
[1736672256922,0.28891713,692.24,691.17,1.3000632]
[1736672257824,0.28891713,692.24,691.16,1.3000632]
[1736672258726,0.28891713,692.24,691.18,1.3000632]
[1736672261029,0.28891713,692.24,691.19,1.3000632]
[1736672262734,0.28891713,692.24,691.11,0.28938953]
[1736672273039,0.28891713,692.24,691.12,1.3000632]
[1736672273936,0.28891713,692.24,691.11,0.28938953]
[1736672273937,0.28891713,692.24,691.11,1.58945273]
[1736672275138,0.28891713,692.24,691.11,0.28938953]
[1736672278238,0.28891713,692.24,691.11,2.11304347]
[1736672279339,0.28891713,692.24,691.11,0.28938953]
[1736672299855,0.28891713,692.24,691.11,1.58945273]
[1736672300960,0.28891713,692.24,691.13,1.3000632]
[1736672302363,0.28891713,692.24,691.11,0.28938953]
[1736672304357,0.28891713,692.24,691.11,2.99708659]
[1736672305462,0.28891713,692.24,691.12,3.00658229]
[1736672305658,0.28891713,692.24,691.13,2.70769706]
[1736672306464,0.28891713,692.24,691.13,1.82532036]
[1736672307258,0.28891713,692.24,691.11,0.28938953]
[1736672308061,0.28891713,692.24,691.12,1.3000632]
[1736672308862,0.28891713,692.24,691.13,1.3000632]
[1736672310070,0.28891713,692.24,691.12,1.3000632]
[1736672312369,0.28891713,692.24,691.11,1.58945273]
[1736672313362,0.28891713,692.24,691.11,0.28938953]
[1736672329382,0.28891713,692.24,691.11,0.28938953]
[1736672331984,0.28891713,692.24,691.17,1.3000632]
[1736672332784,0.28891713,692.24,691.11,0.28938953]
[1736672332785,0.28891713,692.24,691.18,1.3000632]
[1736672333487,0.28891713,692.24,691.17,1.3000632]
[1736672334487,0.28891713,692.24,691.22,1.3000632]
[1736672335289,0.28891713,692.24,691.24,1.3000632]
[1736672335990,0.28891713,692.24,691.14,3.0102755]
[1736672336593,0.28891713,692.24,691.11,0.28938953]
[1736672345598,0.28891713,692.24,691.21,1.3000632]
[1736672346497,1.50886131,692.76,691.42,1.3000632]
[1736672346698,0.55419713,692.75,691.42,1.3000632]
[1736672346896,0.2654927,692.74,691.42,1.3000632]
[1736672347097,0.28871277,692.73,691.42,1.3000632]
[1736672347301,0.2654927,692.72,691.42,1.3000632]
[1736672347503,0.2887211,692.71,691.42,1.3000632]
[1736672347807,0.2654927,692.7,691.44,1.3000632]
[1736672348006,0.28872944,692.69,691.44,1.3000632]
[1736672348205,0.26549533,692.68,691.44,1.3000632]
[1736672348505,0.28873778,692.67,691.44,1.3000632]
[1736672349700,0.28873778,692.67,691.45,1.3000632]
[1736672350705,0.28873778,692.67,691.42,1.3000632]
[1736672351103,1.50861057,692.66,691.42,1.3000632]
[1736672351304,0.28874611,692.65,691.42,1.3000632]
[1736672351502,0.28874611,692.65,691.28,1.3000632]
[1736672352505,1.08027967,692.61,691.18,1.82233116]
[1736672352709,0.28876696,692.6,691.18,1.82233116]
[1736672353413,0.28876696,692.6,691.12,1.82233116]
[1736672354411,1.36904663,692.6,691.12,1.82233116]
[1736672355710,1.08027967,692.58,691.13,1.3000632]
[1736672356011,0.28877947,692.57,691.13,4.30471456]
[1736672356209,0.28877947,692.57,691.14,1.82233116]
[1736672356412,1.08027967,692.56,691.15,1.3000632]
[1736672356607,0.28878781,692.55,691.15,1.3000632]
[1736672356911,0.28878781,692.55,691.15,2.18258051]
[1736672357311,1.08027967,692.53,691.26,1.3000632]
[1736672357506,0.28880032,692.52,691.26,1.3000632]
[1736672358011,0.28880032,692.52,691.25,1.3000632]
[1736672360710,0.28880032,692.52,691.19,1.3000632]
[1736672361510,0.28880032,692.52,691.31,1.3000632]
[1736672363513,0.28880032,692.52,691.32,1.3000632]
[1736672364412,0.28880032,692.52,691.33,1.3000632]
[1736672366811,0.28880032,692.52,691.34,1.3000632]
[1736672367813,1.08027967,692.5,691.31,0.88308188]
[1736672368010,0.28881283,692.49,691.3,2.70753472]
[1736672368417,0.28881283,692.49,691.3,1.82445284]
[1736672368716,0.28881283,692.49,691.28,1.82445284]
[1736672369212,0.28881283,692.49,691.28,2.7086327]
[1736672369617,1.3690925,692.49,691.28,2.7086327]
[1736672370415,1.3690925,692.49,691.29,1.3000632]
[1736672370718,1.3690925,692.49,691.29,2.18424306]
[1736672371815,1.3690925,692.49,691.29,5.18889442]
[1736672372015,1.3690925,692.49,691.3,2.70885033]
[1736672372520,1.3690925,692.49,691.3,4.00891353]
[1736672372720,1.3690925,692.49,691.3,3.12451604]
[1736672373419,1.08027967,692.48,691.31,3.00465136]
[1736672373621,1.08027967,692.48,691.32,1.82445284]
[1736672375517,1.08027967,692.48,691.32,2.70915148]
[1736672376316,0.28881283,692.49,691.32,2.70915148]
[1736672376621,0.28881283,692.49,691.32,5.71380284]
[1736672376922,0.28881283,692.49,691.33,2.70915148]
[1736672378122,0.28881283,692.49,691.33,1.82445284]
[1736672378332,0.28881283,692.49,691.29,2.70915148]
[1736672382826,0.28881283,692.49,691.34,1.3000632]
[1736672383726,0.28881283,692.49,691.29,3.00465136]
[1736672384125,0.28881283,692.49,691.19,3.00465136]
[1736672384326,0.28881283,692.49,691.2,1.82915297]
[1736672384926,0.28881283,692.49,691.21,1.3000632]
[1736672385622,0.28881283,692.49,691.21,4.30471456]
[1736672386226,0.28881283,692.49,691.21,3.00465136]
[1736672387228,0.28881283,692.49,691.2,1.3000632]
[1736672388228,0.28881283,692.49,691.21,1.3000632]
[1736672390630,0.28881283,692.49,691.14,1.82918865]
[1736672390631,0.28881283,692.49,691.15,0.88540306]
[1736672391726,0.28881283,692.49,691.15,3.89005442]
[1736672391927,0.28881283,692.49,691.16,2.71459171]
[1736672393727,0.28881283,692.49,691.26,1.3000632]
[1736672394434,0.28881283,692.49,691.27,1.3000632]
[1736672396233,0.28881283,692.49,691.21,0.88540306]
[1736672396234,1.08027967,692.47,691.34,1.3000632]
[1736672398137,0.28881283,692.49,691.27,0.88540306]
[1736672398138,1.3690925,692.49,691.35,1.3000632]
[1736672398936,0.28881283,692.49,691.39,1.3000632]
[1736672399739,0.28881283,692.49,691.31,0.88540306]
[1736672399740,0.28881283,692.49,691.38,1.3000632]
[1736672400835,0.28881283,692.49,691.39,1.3000632]
[1736672401736,0.28881283,692.49,691.42,1.3000632]
[1736672402942,0.28881283,692.49,691.39,1.3000632]
[1736672404036,0.28881283,692.49,691.44,1.3000632]
[1736672404944,0.28881283,692.49,691.42,1.3000632]
[1736672406447,0.28881283,692.49,691.41,0.8849267]
[1736672406642,0.28881283,692.49,691.4,2.71411535]
[1736672407746,0.28881283,692.49,691.36,2.71411535]
[1736672409749,0.28881283,692.49,691.36,1.82918865]
[1736672410549,0.28881283,692.49,691.35,1.82918865]
[1736672411751,0.28881283,692.49,691.35,2.7136758]
[1736672412150,0.28881283,692.49,691.3,2.7136758]
[1736672413556,0.28881283,692.49,691.32,1.3000632]
[1736672414657,0.28881283,692.49,691.44,1.3000632]
[1736672415352,1.08027967,692.91,691.42,1.3000632]
[1736672415553,0.28864193,692.9,691.42,1.3000632]
[1736672416753,0.28864193,692.9,691.47,1.3000632]
[1736672417558,0.28864193,692.9,691.39,3.88913851]
[1736672417755,0.28864193,692.9,691.4,2.7136758]
[1736672418860,0.28864193,692.9,691.39,2.7136758]
[1736672420257,0.28864193,692.9,691.31,2.7136758]
[1736672420661,0.28864193,692.9,691.44,1.3000632]
[1736672422562,0.28864193,692.9,691.14,1.3000632]
[1736672423864,0.28864193,692.9,691.17,1.3000632]
[1736672424666,0.28864193,692.9,691.54,1.3000632]
[1736672425759,0.28864193,692.9,691.53,1.3000632]
[1736672427665,0.28864193,692.9,691.49,0.88034639]
[1736672427866,0.28864193,692.9,691.48,2.69960298]
[1736672428166,0.28864193,692.9,691.44,2.69960298]
[1736672428868,0.28864193,692.9,691.45,0.28924723]
[1736672429362,0.28864193,692.9,691.45,3.28809097]
[1736672429567,0.28864193,692.9,691.46,2.69960298]
[1736672430067,0.28864193,692.9,691.47,0.28923886]
[1736672430465,0.28864193,692.9,691.47,3.2880826]
[1736672430663,0.28864193,692.9,691.48,2.69960298]
[1736672431770,0.28864193,692.9,691.49,0.2892305]
[1736672432270,0.28864193,692.9,691.49,2.98883348]
[1736672433573,0.28864193,692.9,691.5,2.99884374]
[1736672435271,0.28864193,692.9,691.49,0.2892305]
[1736672454485,0.28864193,692.9,691.63,1.3000632]
[1736672455389,0.28864193,692.9,691.57,1.3000632]
[1736672456388,0.28864193,692.9,691.59,1.3000632]
[1736672457186,0.28864193,692.9,691.63,1.3000632]
[1736672458295,0.28864193,692.9,691.56,1.3000632]
[1736672458489,0.28864193,692.9,691.57,0.28919704]
[1736672459195,0.28864193,692.9,691.6,1.3000632]
[1736672459490,0.28864193,692.9,691.61,0.28918031]
[1736672466090,0.28864193,692.9,691.77,1.3000632]
[1736672467392,0.28864193,692.9,691.75,1.3000632]
[1736672468294,0.28864193,692.9,691.74,1.3000632]
[1736672469095,0.28864193,692.9,691.74,3.99892262]
[1736672469292,0.28864193,692.9,691.75,2.18008032]
[1736672470296,0.28864193,692.9,691.75,5.17589819]
[1736672470599,0.28864193,692.9,691.8,1.3000632]
[1736672471196,0.28864193,692.9,691.79,1.3000632]
[1736672471895,0.28864193,692.9,691.79,2.18008032]
[1736672472493,0.28864193,692.9,691.79,5.17589819]
[1736672472697,0.28864193,692.9,691.8,2.69885942]
[1736672472894,0.28864193,692.9,691.8,1.8188423]
[1736672473894,0.28864193,692.9,691.86,1.3000632]
[1736672474902,0.28864193,692.9,691.85,1.3000632]
[1736672477401,0.28864193,692.9,691.82,1.3000632]
[1736672479603,0.28864193,692.9,691.85,1.3000632]
[1736672481504,0.28864193,692.9,691.79,0.88402909]
[1736672482004,0.28864193,692.9,691.79,3.89665942]
[1736672482205,0.28864193,692.9,691.78,1.3000632]
[1736672482504,0.28864193,692.9,691.76,1.3000632]
[1736672483405,0.28864193,692.9,691.61,0.28918031]
[1736672501019,0.28864193,692.9,691.64,1.3000632]
[1736672501720,0.28864193,692.9,691.7,1.3000632]
[1736672503931,0.28864193,692.9,691.74,1.3000632]
[1736672505030,0.28864193,692.9,691.79,1.3000632]
[1736672505728,0.28864193,692.9,691.78,1.3000632]
[1736672506730,0.28864193,692.9,691.94,1.3000632]
[1736672509929,0.28864193,692.9,691.89,1.3000632]